bitfinex-derivatives/quotes_SOLF0:USTF0_20251107
["timestamp","ask_amount","ask_price","bid_price","bid_amount"]
[1762539981870,0.04719077,161.57,161.53,8.78547149]
[1762539982470,0.04719077,161.57,161.54,5.5747]
[1762539982677,2.88,161.65,161.56,3.17]
[1762539982868,4.981841,161.64,161.56,3.17]
[1762539983068,2.88,161.65,161.59,3.17]
[1762539983269,4.98146,161.64,161.59,3.17]
[1762539983578,2.88,161.69,161.59,3.17]
[1762539983871,0.04175957,161.63,161.62,3.17]
[1762539984074,2.88,161.72,161.63,3.17]
[1762539984273,4.97909507,161.71,161.64,3.17]
[1762539984476,2.88,161.76,161.65,3.17]
[1762539984672,4.97819358,161.75,161.65,3.17]
[1762539984979,0.03955901,161.72,161.69,8.7395]
[1762539985668,0.03955901,161.72,161.69,3.17]
[1762539988371,0.03955901,161.72,161.68,0.0449307]
[1762539988570,2.91955901,161.72,161.68,0.0449307]
[1762539989567,8.48835901,161.72,161.68,0.0449307]
[1762539990475,2.88,161.71,161.68,0.0449307]
[1762539991269,8.4492,161.71,161.68,0.0449307]
[1762539993673,8.7195,161.7,161.68,0.0449307]
[1762539993867,3.15,161.69,161.68,0.0449307]
[1762539994070,3.15,161.68,161.62,5.4]
[1762539994271,3.15,161.63,161.62,5.28069806]
[1762539994473,3.15,161.63,161.52,3.01]
[1762539994678,3.15,161.63,161.53,3.01]
[1762539995080,0.0403648,161.6,161.56,3.05634828]
[1762539997768,0.0403648,161.6,161.56,8.63034828]
[1762539998579,3.1903648,161.6,161.56,0.04634828]
[1762539998978,0.0403648,161.6,161.56,3.05634828]
[1762539999379,0.0403648,161.6,161.56,8.63024828]
[1762539999583,0.0403648,161.6,161.56,3.05634828]
[1762540000978,0.0403648,161.6,161.58,5.5733]
[1762540001174,0.0403648,161.6,161.58,8.4633]
[1762540003585,0.0403648,161.6,161.59,2.89]
[1762540004182,8.6102,161.68,161.61,2.89]
[1762540004383,3.04,161.67,161.61,2.89]
[1762540004580,11.1359,161.75,161.61,2.89]
[1762540004581,3.04,161.72,161.61,2.89]
[1762540004890,3.04,161.72,161.67,8.4602]
[1762540005090,3.04,161.76,161.67,2.89]
[1762540005384,0.04650806,161.73,161.7,2.93019277]
[1762540005591,0.04719595,161.73,161.7,2.93178863]
[1762540006289,0.04719595,161.73,161.72,8.4584]
[1762540009286,3.04,161.83,161.76,2.89]
[1762540009886,3.04,161.83,161.73,2.89]
[1762540010292,3.04,161.83,161.72,18.2655114]
[1762540010293,0.04688544,161.8,161.76,2.93242357]
[1762540010590,3.08688544,161.8,161.76,2.93242357]
[1762540011187,0.04688544,161.8,161.76,2.93242357]
[1762540011591,0.04688544,161.8,161.77,2.89]
[1762540012089,0.04688544,161.8,161.79,2.89]
[1762540013392,0.04688544,161.8,161.76,0.04242357]
[1762540013582,3.08688544,161.8,161.76,2.93242357]
[1762540013787,3.08688544,161.8,161.76,0.04242357]
[1762540014690,8.65298544,161.8,161.76,0.04242357]
[1762540014888,3.08688544,161.8,161.76,0.04242357]
[1762540016488,3.04,161.78,161.76,0.04242357]
[1762540016882,8.6067,161.78,161.76,0.04242357]
[1762540017087,3.04,161.77,161.76,0.04242357]
[1762540017494,0.04688544,161.8,161.76,0.04242357]
[1762540017495,3.08688544,161.8,161.76,0.04242357]
[1762540017692,3.04,161.78,161.76,0.04242357]
[1762540018388,3.08688544,161.8,161.76,2.93242357]
[1762540018588,0.04688544,161.8,161.76,2.93242357]
[1762540019091,3.08688544,161.8,161.76,2.93242357]
[1762540019700,0.04688544,161.8,161.76,2.93242357]
[1762540020286,3.04,161.87,161.79,2.89]
[1762540020487,3.04,161.92,161.79,2.89]
[1762540020687,4.88464928,161.91,161.83,2.89]
[1762540020893,4.88464928,161.9,161.83,2.89]
[1762540021088,3.04,161.92,161.83,2.89]
[1762540021299,4.88465311,161.91,161.84,5.5643]
[1762540021498,0.04645159,161.89,161.86,0.0467057]
[1762540021697,0.04645159,161.89,161.86,2.9367057]
[1762540021897,3.08645159,161.89,161.86,0.0467057]
[1762540022100,7.74188923,161.88,161.86,0.0467057]
[1762540022299,2.86,161.88,161.86,0.0467057]
[1762540022499,7.73973257,161.87,161.86,0.0467057]
[1762540022897,8.425,161.83,161.75,8.5676]
[1762540023092,8.425,161.83,161.75,3.0]
[1762540023293,4.8825189,161.82,161.75,3.0]
[1762540023497,8.425,161.83,161.75,3.0]
[1762540023697,4.88210387,161.82,161.75,3.0]
[1762540023998,0.04454096,161.8,161.77,3.04209462]
[1762540024196,0.04454096,161.8,161.79,3.0]
[1762540024595,0.04454096,161.8,161.77,8.60879462]
[1762540024789,0.04454096,161.8,161.78,3.0]
[1762540025198,0.04454096,161.8,161.79,3.0]
[1762540025993,4.88160025,161.87,161.81,5.5654]
[1762540026193,2.86,161.88,161.81,5.5654]
[1762540027102,2.90673278,161.86,161.83,0.04401902]
[1762540027295,2.90397144,161.86,161.83,0.04337756]
[1762540027496,2.86,161.84,161.83,0.04337756]
[1762540027896,2.90397144,161.86,161.83,0.04337756]
[1762540028297,5.5643,161.85,161.83,0.04337756]
[1762540028500,8.4243,161.85,161.83,0.04337756]
[1762540029294,2.86,161.84,161.83,0.04337756]
[1762540029503,2.86,161.8,161.71,3.0]
[1762540029900,5.5671,161.77,161.71,3.0]
[1762540030104,2.86,161.8,161.7,6.54]
[1762540030403,0.04402775,161.77,161.73,3.04724516]
[1762540030905,2.90402775,161.77,161.73,0.04724516]
[1762540031901,2.90402775,161.77,161.73,3.04724516]
[1762540031902,0.04402775,161.77,161.73,3.04724516]
[1762540032606,0.04402775,161.77,161.75,5.5674]
[1762540032802,0.04402775,161.77,161.76,3.0]
[1762540033208,8.4242,161.85,161.78,5.5665]
[1762540033403,2.86,161.88,161.78,3.0]
[1762540033806,2.86,161.88,161.81,5.5653]
[1762540034007,4.78739839,161.87,161.78,3.0]
[1762540034205,0.0439751,161.84,161.81,0.03983444]
[1762540034405,0.0439751,161.84,161.81,3.03983444]
[1762540035110,0.0439751,161.84,161.81,8.60513444]
[1762540035800,0.0439751,161.84,161.81,3.03983444]
[1762540037202,0.0439751,161.84,161.81,8.60513444]
[1762540037403,0.0439751,161.84,161.81,3.03983444]
[1762540037811,0.0439751,161.84,161.81,0.03983444]
[1762540038304,2.86,161.83,161.81,0.03983444]
[1762540038710,8.425,161.83,161.81,0.03983444]
[1762540039106,0.0439751,161.84,161.81,0.03983444]
[1762540039300,2.9039751,161.84,161.81,0.03983444]
[1762540039909,2.86,161.82,161.81,0.03983444]
[1762540040101,2.86,161.82,161.73,3.0]
[1762540040509,2.86,161.78,161.71,3.0]
[1762540041114,4.78894643,161.84,161.73,0.04561075]
[1762540041115,0.04085991,161.76,161.73,0.04561075]
[1762540041313,2.90090704,161.76,161.73,0.0458269]
[1762540041513,0.04090704,161.76,161.73,0.0458269]
[1762540041916,2.90090704,161.76,161.73,0.0458269]
[1762540044314,2.86,161.74,161.73,0.0458269]
[1762540045118,7.66922735,161.74,161.73,0.0458269]
[1762540045308,8.4287,161.72,161.66,5.5705]
[1762540045511,2.86,161.71,161.64,3.0]
[1762540045810,2.86,161.71,161.65,5.48]
[1762540046313,8.4292,161.71,161.65,11.0509]
[1762540046517,2.90402454,161.7,161.66,0.04603495]
[1762540046718,0.04402454,161.7,161.66,3.03931109]
[1762540048415,0.04402454,161.7,161.67,5.5702]
[1762540048617,2.90402454,161.7,161.66,0.03931109]
[1762540050722,0.04402454,161.7,161.66,3.03931109]
[1762540051423,0.04402454,161.7,161.68,8.5698]
[1762540051619,2.90402454,161.7,161.66,0.03931109]
[1762540051923,0.04402454,161.7,161.67,8.5702]
[1762540052222,0.04402454,161.7,161.68,2.9]
[1762540052418,0.04402454,161.7,161.68,8.4698]
[1762540052624,0.04402454,161.7,161.69,2.9]
[1762540053021,3.06,161.78,161.71,5.5687]
[1762540053221,4.82009663,161.77,161.71,5.5687]
[1762540053517,3.06,161.78,161.71,8.4687]
[1762540053518,4.82009663,161.76,161.71,8.4687]
[1762540053722,8.6267,161.78,161.71,8.4687]
[1762540053923,7.88020498,161.77,161.72,8.4684]
[1762540054115,3.06,161.75,161.73,0.03985376]
[1762540054427,3.06,161.75,161.72,0.04512574]
[1762540056024,3.06,161.73,161.72,0.04512574]
[1762540057428,7.89296409,161.73,161.72,0.04512574]
[1762540058127,3.06,161.73,161.72,0.04512574]
[1762540062129,3.13,161.71,161.65,5.48]
[1762540062630,3.13,161.71,161.67,5.5702]
[1762540062824,3.13,161.76,161.67,3.0]
[1762540063025,11.1331,161.78,161.67,3.0]
[1762540063026,3.13,161.74,161.67,3.0]
[1762540063231,3.17739837,161.72,161.69,0.04455435]
[1762540063628,8.74609837,161.72,161.69,0.04455435]
[1762540064126,8.6991,161.71,161.69,0.04455435]
[1762540064332,3.13,161.7,161.69,0.04455435]
[1762540067529,4.37,161.7,161.69,0.04455435]
[1762540068128,0.04739837,161.72,161.69,0.04455435]
[1762540068325,3.17739837,161.72,161.69,0.04455435]
[1762540069326,3.13,161.7,161.69,0.04455435]
[1762540073427,0.04739837,161.72,161.69,0.04455435]
[1762540073626,0.04739837,161.72,161.69,3.04455435]
[1762540074330,3.17739837,161.72,161.69,0.04455435]
[1762540075337,0.04739837,161.72,161.69,3.04455435]
[1762540076633,0.04739837,161.72,161.7,5.5691]
[1762540076834,0.04739837,161.72,161.7,8.5691]
[1762540077329,0.04739837,161.72,161.71,3.0]
[1762540077528,0.04739837,161.72,161.7,5.5691]
[1762540077740,0.04739837,161.72,161.7,8.5691]
[1762540078941,0.04739837,161.72,161.71,3.0]
[1762540079144,8.696,161.8,161.71,3.0]
[1762540079443,4.83687885,161.79,161.71,3.0]
[1762540079640,3.13,161.79,161.71,3.0]
[1762540080037,7.96693139,161.78,161.72,5.5684]
[1762540080234,0.03974202,161.77,161.73,3.04609424]
[1762540080439,0.04505514,161.77,161.73,3.04567095]
[1762540080935,0.04505514,161.77,161.75,5.5675]
[1762540081131,0.04505514,161.77,161.73,3.04567095]
[1762540081331,0.04505514,161.77,161.73,8.61377095]
[1762540081738,0.04505514,161.77,161.74,3.0]
[1762540082135,0.04505514,161.77,161.74,8.5678]
[1762540082433,3.06505514,161.77,161.73,0.04567095]
[1762540082635,3.02,161.75,161.73,0.04567095]
[1762540082834,0.04505514,161.77,161.73,3.07567095]
[1762540083232,0.04505514,161.77,161.76,3.03]
[1762540083435,3.02,161.83,161.76,3.03]
[1762540083633,4.84765242,161.82,161.76,3.03]
[1762540083837,4.84765242,161.81,161.77,3.03]
[1762540084045,3.02,161.83,161.77,3.03]
[1762540084234,7.86769591,161.82,161.77,3.03]
[1762540084442,3.02,161.82,161.77,3.03]
[1762540084646,3.02,161.82,161.78,3.07194843]
[1762540084647,0.0440651,161.81,161.78,3.07194843]
[1762540084937,3.02,161.8,161.78,0.04194843]
[1762540085246,3.02,161.8,161.72,3.03]
[1762540085247,4.84458836,161.79,161.72,3.03]
[1762540085436,5.7378127,161.84,161.72,3.03]
[1762540085742,7.86537017,161.83,161.77,3.03]
[1762540085935,3.02,161.83,161.78,5.63]
[1762540086144,0.04018871,161.82,161.79,0.04373727]
[1762540086342,0.04018871,161.82,161.79,3.07373727]
[1762540086734,3.06018871,161.82,161.79,0.04373727]
[1762540086936,3.02,161.8,161.79,0.04373727]
[1762540087144,3.02,161.79,161.78,5.57706309]
[1762540087454,7.91192346,161.79,161.78,6.309e-05]
[1762540087640,3.02,161.78,161.66,3.03]
[1762540087942,3.02,161.76,161.62,3.03]
[1762540088145,10.63101316,161.77,161.68,0.04347034]
[1762540088146,3.06545599,161.72,161.68,0.04347034]
[1762540088849,0.04545599,161.72,161.68,3.07347034]
[1762540089343,97.6542,161.9,161.68,3.07347034]
[1762540089344,3.02,161.81,161.72,3.03]
[1762540089544,7.91271374,161.8,161.72,3.03]
[1762540089744,7.91271374,161.79,161.72,3.03]
[1762540089951,4.89271374,161.78,161.72,3.03]
[1762540090152,3.02,161.79,161.72,3.03]
[1762540090355,0.04151201,161.77,161.73,0.04539314]
[1762540090648,3.06151201,161.77,161.73,0.04539314]
[1762540090851,4.89247076,161.76,161.73,3.07539314]
[1762540091146,3.06151201,161.77,161.73,0.04539314]
[1762540091949,0.04151201,161.77,161.73,3.07539314]
[1762540093853,3.06151201,161.77,161.73,0.04539314]
[1762540094155,0.04151201,161.77,161.73,3.07539314]
[1762540094556,0.04151201,161.77,161.73,8.64369314]
[1762540094959,0.04151201,161.77,161.74,3.03]
[1762540095661,8.5842,161.85,161.76,3.03]
[1762540095859,4.88919555,161.84,161.76,3.03]
[1762540096051,3.02,161.85,161.76,3.03]
[1762540096759,0.04309231,161.82,161.79,3.07681012]
[1762540097352,3.06309231,161.82,161.79,0.04681012]
[1762540098461,3.02,161.8,161.79,0.04681012]
[1762540098760,3.06309231,161.82,161.79,0.04681012]
[1762540099964,0.04309231,161.82,161.79,0.04681012]
[1762540100261,0.04309231,161.82,161.79,3.07681012]
[1762540100460,0.04309231,161.82,161.81,3.03]
[1762540100862,0.04309231,161.82,161.79,3.07681012]
[1762540101062,0.04309231,161.82,161.79,0.04681012]
[1762540101560,3.06309231,161.82,161.79,0.04681012]
[1762540101862,3.02,161.8,161.79,0.04681012]
[1762540102574,3.02,161.79,161.68,3.03]
[1762540102865,8.5871,161.77,161.71,5.5687]
[1762540103066,3.02,161.76,161.68,3.03]
[1762540103456,0.03990611,161.74,161.7,0.04186891]
[1762540103769,3.02,161.73,161.7,0.04186891]
[1762540104157,8.5886,161.73,161.7,0.04186891]
[1762540104355,3.02,161.73,161.7,0.04186891]
[1762540105862,0.03990611,161.74,161.7,3.07186891]
[1762540106963,3.05990611,161.74,161.7,0.04186891]
[1762540108070,8.62800611,161.74,161.7,0.04186891]
[1762540108269,3.02,161.73,161.7,0.04186891]
[1762540108764,0.03990611,161.74,161.7,3.07186891]
[1762540109066,3.05990611,161.74,161.7,0.04186891]
[1762540109263,0.03990611,161.74,161.7,0.04186891]
[1762540109460,0.03990611,161.74,161.71,3.03]
[1762540110167,3.02,161.82,161.73,3.03]
[1762540110368,4.8834452,161.81,161.73,3.03]
[1762540110563,4.8834452,161.8,161.74,5.5677]
[1762540110760,3.02,161.82,161.73,3.03]
[1762540111056,0.03964724,161.79,161.76,8.63813031]
[1762540111262,3.02,161.82,161.76,3.03]
[1762540111462,0.04177015,161.79,161.76,3.0763409]
[1762540111668,0.04177015,161.79,161.77,5.5667]
[1762540111874,0.04177015,161.79,161.77,8.5967]
[1762540112058,0.04177015,161.79,161.78,2.9]
[1762540112568,5.5643,161.85,161.8,2.9]
[1762540112569,4.88483563,161.84,161.8,2.9]
[1762540112769,5.5643,161.85,161.8,2.9]
[1762540113272,79.1,161.89,161.72,5.7390897]
[1762540113273,13.58869365,161.84,161.77,5.5668]
[1762540113466,8.7046,161.84,161.77,2.9]
[1762540113665,0.03393274,161.82,161.79,2.94433885]
[1762540114472,0.03393274,161.82,161.79,0.04433885]
[1762540115570,0.03393274,161.82,161.79,8.51043885]
[1762540115772,0.03393274,161.82,161.8,2.9]
[1762540116473,0.03393274,161.82,161.8,8.4657]
[1762540116675,0.03393274,161.82,161.79,0.04433885]
[1762540116676,4.85891485,161.87,161.81,2.9]
[1762540116876,3.14,161.91,161.81,2.9]
[1762540117062,3.14,161.89,161.78,2.9]
[1762540117373,7.99872567,161.88,161.78,2.9]
[1762540117572,4.85872567,161.87,161.78,2.9]
[1762540117776,13.56284041,161.86,161.81,2.94118751]
[1762540117967,3.14,161.85,161.82,0.04576534]
[1762540118277,3.14,161.83,161.73,2.9]
[1762540118575,4.85894451,161.82,161.73,2.9]
[1762540118766,3.14,161.83,161.73,2.9]
[1762540118966,3.14,161.79,161.71,2.9]
[1762540119366,0.04587711,161.77,161.73,0.04273877]
[1762540119664,0.04587711,161.77,161.73,2.94273877]
[1762540121178,0.04587711,161.77,161.76,3.02]
[1762540121969,0.04587711,161.77,161.74,8.5876]
[1762540122172,0.04587711,161.77,161.75,5.5675]
[1762540122375,0.04587711,161.77,161.75,8.5875]
[1762540122570,0.04587711,161.77,161.76,3.02]
[1762540123974,0.04587711,161.77,161.75,5.5675]
[1762540124365,0.04587711,161.77,161.76,3.02]
[1762540126181,0.04587711,161.77,161.75,5.5675]
[1762540126778,0.04587711,161.77,161.75,8.5875]
[1762540126973,0.04587711,161.77,161.75,5.5675]
[1762540127477,0.04587711,161.77,161.73,8.63083877]
[1762540127681,0.04587711,161.77,161.73,3.06273877]
[1762540127980,3.18587711,161.77,161.73,0.04273877]
[1762540128583,0.04587711,161.77,161.74,5.5678]
[1762540128875,0.04587711,161.77,161.74,3.02]
[1762540129071,5.5647,161.84,161.78,5.5665]
[1762540129272,4.86562643,161.83,161.74,3.02]
[1762540129479,4.86562643,161.82,161.74,3.02]
[1762540129774,7.47,161.85,161.74,3.02]
[1762540129976,3.14,161.83,161.78,0.04335877]
[1762540130183,3.14,161.81,161.78,0.04335877]
[1762540130878,7.47,161.85,161.78,0.04335877]
[1762540131174,4.86552887,161.84,161.78,0.04335877]
[1762540131376,8.00552887,161.83,161.78,0.04335877]
[1762540131579,3.14,161.83,161.78,0.04335877]
[1762540131776,3.14,161.83,161.78,3.06335877]
[1762540131978,3.14,161.83,161.79,5.5661]
[1762540132171,4.8657451,161.82,161.78,3.06335877]
[1762540132367,3.14,161.83,161.78,3.06335877]
[1762540132568,4.86561796,161.82,161.78,3.06335877]
[1762540132769,3.14,161.8,161.78,0.04335877]
[1762540132970,8.00607857,161.79,161.7,62.0]
[1762540133175,8.00607857,161.79,161.71,5.5688]
[1762540133176,8.00607857,161.78,161.71,5.5688]
[1762540133377,4.86607857,161.77,161.68,3.02]
[1762540133576,3.14,161.82,161.68,3.02]
[1762540133776,5.566,161.8,161.74,5.5678]
[1762540133971,4.8676179,161.79,161.75,3.02]
[1762540134178,4.8676179,161.78,161.75,3.06343552]
[1762540134379,0.0424925,161.79,161.76,3.02]
[1762540134886,0.0424925,161.79,161.76,8.5871]
[1762540135483,0.0424925,161.79,161.76,5.5671]
[1762540135781,0.0424925,161.79,161.78,3.02]
[1762540135985,4.33,161.85,161.78,3.02]
[1762540136177,4.86771312,161.84,161.78,3.02]
[1762540136376,4.33,161.85,161.78,3.02]
[1762540136679,4.8673374,161.84,161.78,3.02]
[1762540136879,4.33,161.85,161.8,3.02]
[1762540137078,4.86729184,161.84,161.8,3.02]
[1762540137386,4.33,161.85,161.84,3.02]
[1762540137784,4.33,161.85,161.83,8.63174835]
[1762540138182,4.33,161.85,161.84,3.02]
[1762540138388,5.75453439,161.94,161.84,3.02]
[1762540138580,4.86359018,161.93,161.87,0.04611772]
[1762540138886,8.00359018,161.92,161.87,3.06611772]
[1762540139186,3.14,161.92,161.87,3.06611772]
[1762540139684,3.14,161.9,161.87,0.04611772]
[1762540139884,3.14,161.95,161.87,0.04184558]
[1762540140187,3.14,161.91,161.89,0.04320603]
[1762540140486,8.00033288,161.9,161.89,0.04320603]
[1762540142081,3.14,161.9,161.89,0.04320603]
[1762540142984,7.99664746,161.9,161.89,0.04320603]
[1762540143394,7.9951471,161.9,161.89,0.04320603]
[1762540143784,9.2351471,161.9,161.89,0.04320603]
[1762540143982,8.6529,161.89,161.79,3.12]
[1762540144886,0.04382613,161.86,161.82,3.16114674]
[1762540145088,0.04382613,161.86,161.83,3.12]
[1762540145490,0.04382613,161.86,161.84,5.5643]
[1762540145690,0.04382613,161.86,161.84,8.6843]
[1762540145889,0.04382613,161.86,161.85,3.12]
[1762540146186,3.09,161.93,161.87,5.5633]
[1762540146388,3.09,161.93,161.87,8.6833]
[1762540146588,3.09,161.97,161.87,3.12]
[1762540146793,3.09,161.95,161.87,3.12]
[1762540147086,4.78135083,161.94,161.87,3.12]
[1762540147283,3.09,161.95,161.89,0.04355934]
[1762540147786,3.09,161.93,161.89,0.04355934]
[1762540148086,4.77949137,161.92,161.89,0.04355934]
[1762540148388,3.09,161.91,161.89,0.04355934]
[1762540150577,3.09,161.95,161.89,0.04355934]
[1762540151689,3.09,161.93,161.89,0.04355934]
[1762540151892,3.09,161.91,161.89,0.04355934]
[1762540152792,3.09,161.9,161.89,0.04355934]
[1762540153185,3.09,161.95,161.89,0.04355934]
[1762540153386,10.98453439,161.98,161.89,0.04355934]
[1762540153387,3.09,161.93,161.89,0.04355934]
[1762540153694,3.09,161.91,161.89,0.04355934]
[1762540153992,7.87244288,161.9,161.89,0.04355934]
[1762540155791,3.09,161.9,161.89,0.04355934]
[1762540156583,5.5622,161.91,161.89,0.04355934]
[1762540156781,8.6522,161.91,161.89,0.04355934]
[1762540156991,3.09,161.91,161.89,0.04355934]
[1762540157293,5.5617,161.93,161.89,0.04355934]
[1762540157294,8.6517,161.93,161.89,0.04355934]
[1762540157489,7.87420326,161.92,161.89,0.04355934]
[1762540157694,3.09,161.92,161.89,0.04355934]
[1762540157992,7.502e-05,162.15,161.96,86.4904]
[1762540158195,3.09,162.17,161.96,86.4904]
[1762540158196,3.09,162.17,162.04,8.82436689]
[1762540158391,3.09,162.17,162.1,5.5552]
[1762540158599,3.09,162.17,162.09,0.04660131]
[1762540158784,1.07349425,162.26,162.09,0.04660131]
[1762540158785,3.09,162.26,162.09,0.04660131]
[1762540158987,3.09,162.26,162.16,0.04489462]
[1762540159184,3.09,162.26,162.19,0.04297661]
[1762540159601,3.09,162.23,162.19,0.04297661]
[1762540160488,3.09,162.21,162.19,0.04297661]
[1762540160687,3.09,162.21,162.05,8.77961007]
[1762540160884,3.09,162.21,162.06,62.0]
[1762540161089,3.09,162.21,162.12,5.5549]
[1762540161594,0.04297661,162.18,162.15,0.04285429]
[1762540162397,0.04297661,162.18,162.15,5.59635429]
[1762540162593,0.04297661,162.18,162.15,0.04285429]
[1762540162785,3.09,162.26,162.16,1.24]
[1762540162988,3.09,162.26,162.14,8.77961007]
[1762540163992,4.58,162.28,162.18,0.04523679]
[1762540163993,7.67,162.28,162.18,0.04523679]
[1762540164200,7.67,162.28,162.16,8.77961007]
[1762540164497,13.2197,162.28,162.2,0.0410106]
[1762540165399,5.5501,162.26,162.2,0.0410106]
[1762540165590,3.09,162.25,162.2,0.0410106]
[1762540167993,4.58,162.28,162.2,0.0410106]
[1762540168602,3.09,162.27,162.2,0.0410106]
[1762540170100,4.58,162.28,162.2,8.82062067]
[1762540170601,4.58,162.28,162.25,5.5503]
[1762540170801,4.58,162.28,162.25,5.59779846]
[1762540172007,3.09,162.37,162.25,0.04749846]
[1762540172206,3.09,162.37,162.29,0.04205795]
[1762540172407,3.09,162.37,162.16,8.77961007]
[1762540172408,4.72e-05,162.46,162.36,17.55922014]
[1762540172606,3.09,162.57,162.39,18.60066306]
[1762540172907,3.09,162.57,162.46,0.04532087]
[1762540173105,3.09,162.56,162.26,86.3322]
[1762540173411,3.09,162.48,162.34,86.2925]
[1762540173613,3.09,162.56,162.35,86.2851]
[1762540173810,3.09,162.56,162.37,8.77961007]
[1762540174116,0.04212207,162.48,162.45,0.04165176]
[1762540174415,0.03985335,162.48,162.45,0.04366602]
[1762540175815,3.12985335,162.48,162.45,0.04366602]
[1762540177717,0.03985335,162.48,162.45,0.04366602]
[1762540178516,3.12985335,162.48,162.45,0.04366602]
[1762540179410,0.03985335,162.48,162.45,0.04366602]
[1762540182816,3.15985335,162.48,162.45,0.04366602]
[1762540183521,3.12,162.47,162.33,8.77961007]
[1762540183726,3.12,162.47,162.29,8.77961007]
[1762540184325,0.04014711,162.4,162.37,5.5463]
[1762540184622,0.04176554,162.4,162.37,0.04716657]
[1762540184926,0.04176554,162.4,162.39,5.5456]
[1762540185317,3.12,162.53,162.39,1.24]
[1762540185517,3.12,162.53,162.38,18.69883852]
[1762540185814,3.12,162.53,162.34,18.56]
[1762540186124,3.12,162.53,162.35,62.0]
[1762540186319,0.04055144,162.46,162.42,0.04578205]
[1762540186527,0.04055144,162.46,162.42,0.04523636]
[1762540186726,3.16055144,162.46,162.42,0.04523636]
[1762540188220,0.04055144,162.46,162.42,0.04523636]
[1762540189316,0.04055144,162.46,162.44,5.5439]
[1762540190926,0.04055144,162.46,162.42,0.04523636]
[1762540191722,3.16055144,162.46,162.42,0.04523636]
[1762540192123,3.16055144,162.46,162.42,5.58963636]
[1762540192832,3.16055144,162.46,162.42,0.04523636]
[1762540193731,0.04055144,162.46,162.42,0.04523636]
[1762540195117,0.04055144,162.46,162.44,5.5437]
[1762540196022,3.12,162.54,162.42,5.73035508]
[1762540196329,3.12,162.54,162.41,5.68511872]
[1762540196835,3.12,162.54,162.46,5.543]
[1762540197035,3.12,162.54,162.37,84.58395441]
[1762540197036,3.12,162.53,162.48,0.04129333]
[1762540197227,3.12,162.53,162.49,0.0391058]
[1762540197427,3.12,162.5,162.49,0.00395268]
[1762540197726,3.12,162.5,162.38,62.0]
[1762540198335,3.12,162.5,162.43,5.544]
[1762540198629,0.04046844,162.48,162.45,0.04202069]
[1762540198830,3.16046844,162.48,162.45,0.04202069]
[1762540200029,3.16046844,162.48,162.38,62.0]
[1762540200227,3.12,162.48,162.37,18.94395441]
[1762540200432,3.12,162.48,162.3,273.13163062]
[1762540200433,3.12,162.47,162.3,273.13163062]
[1762540200731,3.12,162.41,162.35,5.5468]
[1762540201034,3.12,162.41,162.31,18.76607848]
[1762540201335,3.12,162.39,162.36,0.04032518]
[1762540201724,3.12,162.39,162.28,11.0983]
[1762540201725,3.12,162.39,162.27,5.68511872]
[1762540201930,3.12,162.39,162.32,5.5478]
[1762540202130,3.12,162.39,162.27,5.68511872]
[1762540202331,2.92,162.37,162.21,5.68511872]
[1762540202526,2.92,162.35,162.21,23.97426611]
[1762540202836,2.96529251,162.3,162.26,0.04356029]
[1762540203029,2.96529251,162.3,162.26,0.0413953]
[1762540203234,0.04529251,162.3,162.26,0.0413953]
[1762540203542,0.04529251,162.3,162.27,5.5497]
[1762540203726,2.92,162.38,162.27,5.68511872]
[1762540203931,4.70738879,162.37,162.3,5.5487]
[1762540204227,4.70738879,162.36,162.27,5.68511872]
[1762540204428,4.7120834,162.35,162.27,5.68511872]
[1762540204629,4.7115125,162.34,162.24,5.68511872]
[1762540204828,0.04127966,162.31,162.27,0.04529706]
[1762540205033,4.71313506,162.3,162.27,0.04529706]
[1762540205332,4.71760451,162.29,162.27,0.04529706]
[1762540205533,2.96127966,162.31,162.27,0.04529706]
[1762540205731,4.71760782,162.3,162.27,0.04529706]